[Event "*** Titled Tuesday Blitz"]
[Site "Chess.com"]
[Date "2020.04.28"]
[Round "1"]
[White "MeetGoku"]
[Black "KrolPawel92OnTwitch"]
[Result "0-1"]
[WhiteElo "2310"]
[BlackElo "2637"]
[TimeControl "180+1"]
[EndTime "10:05:38 PDT"]
[Termination "KrolPawel92OnTwitch won by checkmate"]

1. e4 {[%clk 0:02:29.1]} 1... c5 {[%clk 0:02:59]} 2. Nf3 {[%clk 0:02:24.8]} 2...
e6 {[%clk 0:02:59.3]} 3. d4 {[%clk 0:02:24.9]} 3... cxd4 {[%clk 0:03:00.2]} 4.
Nxd4 {[%clk 0:02:25.5]} 4... Qb6 {[%clk 0:03:00.6]} 5. Nb3 {[%clk 0:02:24.5]}
5... Nf6 {[%clk 0:03:00.7]} 6. Nc3 {[%clk 0:02:24.5]} 6... Bb4 {[%clk
0:03:00.4]} 7. Bd2 {[%clk 0:02:22.5]} 7... Nc6 {[%clk 0:02:48.8]} 8. Qe2 {[%clk
0:02:21.5]} 8... O-O {[%clk 0:02:47.1]} 9. O-O-O {[%clk 0:02:19.4]} 9... a5
{[%clk 0:02:41.4]} 10. Na4 {[%clk 0:02:04.3]} 10... Qc7 {[%clk 0:02:41.3]} 11.
Bg5 {[%clk 0:02:01.3]} 11... b5 {[%clk 0:02:35.5]} 12. Qxb5 {[%clk 0:01:58.2]}
12... Ba6 {[%clk 0:02:30.7]} 13. Qb6 {[%clk 0:01:56.2]} 13... Qc8 {[%clk
0:02:17.8]} 14. Bxf6 {[%clk 0:01:54.6]} 14... gxf6 {[%clk 0:02:13.8]} 15. Bxa6
{[%clk 0:01:49]} 15... Rxa6 {[%clk 0:02:13.4]} 16. Qe3 {[%clk 0:01:47.9]} 16...
Ne5 {[%clk 0:02:12.4]} 17. a3 {[%clk 0:01:37.2]} 17... Be7 {[%clk 0:02:00.1]}
18. f4 {[%clk 0:01:36.3]} 18... Nc4 {[%clk 0:01:55.2]} 19. Qd4 {[%clk
0:01:36.7]} 19... Rd8 {[%clk 0:01:24.6]} 20. Rd3 {[%clk 0:01:24.1]} 20... Rc6
{[%clk 0:01:23.3]} 21. Rc3 {[%clk 0:01:20.7]} 21... d5 {[%clk 0:01:23.2]} 22. e5
{[%clk 0:01:20.6]} 22... f5 {[%clk 0:01:20.3]} 23. g4 {[%clk 0:01:19.7]} 23...
fxg4 {[%clk 0:01:14.3]} 24. Rg1 {[%clk 0:01:19.9]} 24... h5 {[%clk 0:01:14.2]}
25. h3 {[%clk 0:01:19.8]} 25... Qb7 {[%clk 0:01:04]} 26. hxg4 {[%clk 0:01:17.5]}
26... h4 {[%clk 0:01:04.4]} 27. g5 {[%clk 0:01:14.8]} 27... Qb5 {[%clk
0:01:04.7]} 28. f5 {[%clk 0:01:08.4]} 28... exf5 {[%clk 0:01:03.7]} 29. Qxh4
{[%clk 0:01:01.7]} 29... Rg6 {[%clk 0:00:58.6]} 30. Nac5 {[%clk 0:00:57.6]}
30... Bxc5 {[%clk 0:00:55.9]} 31. Nxc5 {[%clk 0:00:57.6]} 31... Qxb2+ {[%clk
0:00:55.1]} 32. Kd1 {[%clk 0:00:57]} 32... Qxc3 {[%clk 0:00:54.8]} 33. Rh1
{[%clk 0:00:56.6]} 33... Qd2# {[%clk 0:00:54.4]} 0-1

[Event "*** Titled Tuesday Blitz"]
[Site "Chess.com"]
[Date "2020.04.28"]
[Round "1"]
[White "AnnaChessLook"]
[Black "morfius"]
[Result "0-1"]
[WhiteElo "2260"]
[BlackElo "2595"]
[TimeControl "180+1"]
[EndTime "10:05:39 PDT"]
[Termination "morfius won by resignation"]

1. d4 {[%clk 0:02:39.9]} 1... Nf6 {[%clk 0:02:59.7]} 2. c4 {[%clk 0:02:39.8]}
2... c5 {[%clk 0:03:00.3]} 3. d5 {[%clk 0:02:39.9]} 3... b5 {[%clk 0:03:01]} 4.
cxb5 {[%clk 0:02:40]} 4... a6 {[%clk 0:03:01.6]} 5. bxa6 {[%clk 0:02:40.5]} 5...
g6 {[%clk 0:03:02.2]} 6. Nc3 {[%clk 0:02:40.8]} 6... Bg7 {[%clk 0:03:01.4]} 7.
e4 {[%clk 0:02:41.2]} 7... O-O {[%clk 0:03:00.6]} 8. Be2 {[%clk 0:02:37.4]} 8...
Qa5 {[%clk 0:02:59.4]} 9. Bd2 {[%clk 0:02:37.2]} 9... Bxa6 {[%clk 0:03:00.1]}
10. e5 {[%clk 0:02:32.3]} 10... Ne8 {[%clk 0:02:50.8]} 11. Nf3 {[%clk
0:02:32.2]} 11... d6 {[%clk 0:02:41.5]} 12. e6 {[%clk 0:02:31.9]} 12... fxe6
{[%clk 0:02:37.9]} 13. dxe6 {[%clk 0:02:22.8]} 13... Nc7 {[%clk 0:02:37.6]} 14.
Ng5 {[%clk 0:02:22.8]} 14... Bxe2 {[%clk 0:02:35.5]} 15. Qxe2 {[%clk 0:02:22.5]}
15... Qa6 {[%clk 0:02:31.9]} 16. a4 {[%clk 0:01:55]} 16... Nc6 {[%clk
0:02:28.8]} 17. Qxa6 {[%clk 0:01:37.9]} 17... Rxa6 {[%clk 0:02:27.9]} 18. O-O
{[%clk 0:01:36.4]} 18... Rb8 {[%clk 0:02:23.6]} 19. Ra2 {[%clk 0:01:14.5]} 19...
Nd4 {[%clk 0:02:11.4]} 20. Re1 {[%clk 0:01:09.6]} 20... h6 {[%clk 0:02:04.3]}
21. Nf7 {[%clk 0:00:59.2]} 21... Kh7 {[%clk 0:02:04.1]} 22. Re4 {[%clk
0:00:22.8]} 22... Ndxe6 {[%clk 0:01:53.8]} 23. Rh4 {[%clk 0:00:06.9]} 23... g5
{[%clk 0:01:27.8]} 24. Nxg5+ {[%clk 0:00:06.2]} 24... Nxg5 {[%clk 0:01:27.3]}
25. Bxg5 {[%clk 0:00:07.1]} 25... Bxc3 {[%clk 0:01:27.6]} 26. bxc3 {[%clk
0:00:07.7]} 0-1

[Event "*** Titled Tuesday Blitz"]
[Site "Chess.com"]
[Date "2020.04.28"]
[Round "1"]
[White "chito89"]
[Black "Suleyman_Chess06"]
[Result "1-0"]
[WhiteElo "2740"]
[BlackElo "2389"]
[TimeControl "180+1"]
[EndTime "10:05:40 PDT"]
[Termination "chito89 won by resignation"]

1. d4 {[%clk 0:02:57.7]} 1... d5 {[%clk 0:03:00.1]} 2. c4 {[%clk 0:02:57.5]}
2... dxc4 {[%clk 0:03:01]} 3. Nf3 {[%clk 0:02:57.4]} 3... Nf6 {[%clk 0:03:01.2]}
4. e3 {[%clk 0:02:57.2]} 4... e6 {[%clk 0:03:01.8]} 5. Bxc4 {[%clk 0:02:57]}
5... c5 {[%clk 0:03:02.3]} 6. O-O {[%clk 0:02:56.6]} 6... a6 {[%clk 0:03:02.7]}
7. Be2 {[%clk 0:02:52.6]} 7... b5 {[%clk 0:03:00.5]} 8. a4 {[%clk 0:02:44.9]}
8... b4 {[%clk 0:02:59.4]} 9. Nbd2 {[%clk 0:02:41.1]} 9... Bb7 {[%clk
0:02:56.7]} 10. Nc4 {[%clk 0:02:26.2]} 10... Nbd7 {[%clk 0:02:52.8]} 11. Nfe5
{[%clk 0:02:19.8]} 11... Nxe5 {[%clk 0:02:43.7]} 12. dxe5 {[%clk 0:02:17.7]}
12... Qxd1 {[%clk 0:02:34.2]} 13. Rxd1 {[%clk 0:02:16.9]} 13... Nd5 {[%clk
0:02:34.4]} 14. e4 {[%clk 0:02:13.2]} 14... Nc7 {[%clk 0:02:34.2]} 15. Nd6+
{[%clk 0:02:13.3]} 15... Bxd6 {[%clk 0:02:30.2]} 16. exd6 {[%clk 0:02:13.4]}
16... O-O-O {[%clk 0:02:30.4]} 17. dxc7 {[%clk 0:02:13.1]} 17... Rxd1+ {[%clk
0:02:29.7]} 18. Bxd1 {[%clk 0:02:13.1]} 18... Bxe4 {[%clk 0:02:30.2]} 19. Be3
{[%clk 0:02:04.3]} 19... Kxc7 {[%clk 0:02:19]} 20. Bxc5 {[%clk 0:01:59.9]} 20...
a5 {[%clk 0:02:11.8]} 21. Be2 {[%clk 0:01:59.3]} 21... Kb7 {[%clk 0:02:09.8]}
22. Rc1 {[%clk 0:01:48.5]} 22... Rc8 {[%clk 0:02:09.5]} 23. Be3 {[%clk
0:01:48.4]} 23... Rxc1+ {[%clk 0:02:09.4]} 24. Bxc1 {[%clk 0:01:48.4]} 24... Bc6
{[%clk 0:02:10.3]} 25. b3 {[%clk 0:01:43.7]} 25... Bd5 {[%clk 0:02:10.2]} 26.
Bd1 {[%clk 0:01:42.2]} 26... Kb6 {[%clk 0:02:10.5]} 27. f3 {[%clk 0:01:39.9]}
27... Kc5 {[%clk 0:02:10.6]} 28. Be3+ {[%clk 0:01:40.3]} 28... Kc6 {[%clk
0:02:10.8]} 29. Kf2 {[%clk 0:01:40.9]} 29... e5 {[%clk 0:02:11.4]} 30. Ke2
{[%clk 0:01:40.9]} 30... f6 {[%clk 0:02:11.9]} 31. Kd3 {[%clk 0:01:39.3]} 31...
h6 {[%clk 0:02:12.4]} 32. Kc2 {[%clk 0:01:38.5]} 32... e4 {[%clk 0:02:10.4]} 33.
Be2 {[%clk 0:01:35.6]} 33... f5 {[%clk 0:02:08.4]} 34. Bb5+ {[%clk 0:01:34.4]}
34... Kb7 {[%clk 0:02:05.4]} 35. f4 {[%clk 0:01:34.1]} 35... Be6 {[%clk
0:01:59.3]} 36. h4 {[%clk 0:01:29.9]} 36... Bf7 {[%clk 0:01:56.4]} 37. Bd4
{[%clk 0:01:27.5]} 37... g6 {[%clk 0:01:56.6]} 38. Bf6 {[%clk 0:01:22.9]} 38...
h5 {[%clk 0:01:55.6]} 39. Bd8 {[%clk 0:01:22.6]} 39... Bd5 {[%clk 0:01:52.4]}
40. Bxa5 {[%clk 0:01:22.5]} 40... e3 {[%clk 0:01:52.6]} 41. Bxb4 {[%clk
0:01:21]} 41... Bxg2 {[%clk 0:01:52.6]} 42. Kd3 {[%clk 0:01:20.3]} 42... Bd5
{[%clk 0:01:51.7]} 43. Bc4 {[%clk 0:01:20.2]} 43... Be4+ {[%clk 0:01:50.8]} 44.
Kxe3 {[%clk 0:01:20.1]} 44... Kc6 {[%clk 0:01:51.7]} 45. a5 {[%clk 0:01:18.9]}
45... Kb7 {[%clk 0:01:51.7]} 46. Bc5 {[%clk 0:01:17.5]} 46... Kc6 {[%clk
0:01:52]} 47. b4 {[%clk 0:01:17.8]} 47... Kb7 {[%clk 0:01:52.9]} 48. a6+ {[%clk
0:01:16.6]} 48... Kc6 {[%clk 0:01:51]} 49. Kd4 {[%clk 0:01:15.3]} 49... Kc7
{[%clk 0:01:51.4]} 50. Bd5 {[%clk 0:01:15.1]} 1-0

[Event "*** Titled Tuesday Blitz"]
[Site "Chess.com"]
[Date "2020.04.28"]
[Round "1"]
[White "RaphaeI"]
[Black "Andrii_Prydun"]
[Result "1/2-1/2"]
[WhiteElo "2642"]
[BlackElo "2332"]
[TimeControl "180+1"]
[EndTime "10:05:40 PDT"]
[Termination "Game drawn by agreement"]

1. d4 {[%clk 0:02:59.9]} 1... d5 {[%clk 0:02:59.5]} 2. Nf3 {[%clk 0:02:59.4]}
2... Nf6 {[%clk 0:02:59.4]} 3. Bf4 {[%clk 0:02:59.2]} 3... c6 {[%clk 0:02:58.9]}
4. e3 {[%clk 0:02:56]} 4... e6 {[%clk 0:02:56.7]} 5. Bd3 {[%clk 0:02:46]} 5...
Bd6 {[%clk 0:02:57]} 6. Ne5 {[%clk 0:02:39.1]} 6... O-O {[%clk 0:02:56.8]} 7.
Nd2 {[%clk 0:02:38.3]} 7... Qc7 {[%clk 0:02:56.4]} 8. c3 {[%clk 0:02:27.9]} 8...
Nbd7 {[%clk 0:02:56.4]} 9. Ndf3 {[%clk 0:02:28.1]} 9... b6 {[%clk 0:02:45.2]}
10. h4 {[%clk 0:02:09.8]} 10... Bb7 {[%clk 0:02:41.2]} 11. h5 {[%clk 0:02:07.6]}
11... c5 {[%clk 0:02:31.5]} 12. Rh3 {[%clk 0:01:24.6]} 12... Ne4 {[%clk
0:02:10]} 13. Nxd7 {[%clk 0:01:18.5]} 13... Qxd7 {[%clk 0:02:08.2]} 14. Bxe4
{[%clk 0:01:12.4]} 14... dxe4 {[%clk 0:02:08.3]} 15. Ne5 {[%clk 0:01:07.7]}
15... Bxe5 {[%clk 0:02:07.8]} 16. Bxe5 {[%clk 0:01:07.4]} 16... f6 {[%clk
0:02:06.2]} 17. Bf4 {[%clk 0:01:04.7]} 17... Rad8 {[%clk 0:01:52.6]} 18. Qg4
{[%clk 0:00:59]} 18... Rf7 {[%clk 0:00:56.4]} 19. O-O-O {[%clk 0:00:49.3]} 19...
e5 {[%clk 0:00:54.3]} 20. Qxd7 {[%clk 0:00:43.3]} 20... Rfxd7 {[%clk 0:00:55.2]}
1/2-1/2

[Event "*** Titled Tuesday Blitz"]
[Site "Chess.com"]
[Date "2020.04.28"]
[Round "1"]
[White "exoticprincess"]
[Black "jmduque"]
[Result "1-0"]
[WhiteElo "2859"]
[BlackElo "2440"]
[TimeControl "180+1"]
[EndTime "10:05:42 PDT"]
[Termination "exoticprincess won by resignation"]

1. d4 {[%clk 0:02:59.4]} 1... Nf6 {[%clk 0:02:59.7]} 2. c4 {[%clk 0:02:59.4]}
2... b6 {[%clk 0:02:59.6]} 3. Nc3 {[%clk 0:02:56]} 3... Bb7 {[%clk 0:03:00]} 4.
Nf3 {[%clk 0:02:55.4]} 4... g6 {[%clk 0:02:58.8]} 5. d5 {[%clk 0:02:54.5]} 5...
Bg7 {[%clk 0:02:57.5]} 6. e4 {[%clk 0:02:55.1]} 6... d6 {[%clk 0:02:57.6]} 7.
Bd3 {[%clk 0:02:54.9]} 7... O-O {[%clk 0:02:57.8]} 8. O-O {[%clk 0:02:55.8]}
8... Nbd7 {[%clk 0:02:57.9]} 9. Re1 {[%clk 0:02:55.9]} 9... Nc5 {[%clk
0:02:55.6]} 10. Bc2 {[%clk 0:02:55.8]} 10... a5 {[%clk 0:02:55.8]} 11. Bg5
{[%clk 0:02:54.8]} 11... h6 {[%clk 0:02:55.4]} 12. Be3 {[%clk 0:02:55.1]} 12...
Ng4 {[%clk 0:02:54.6]} 13. Bd4 {[%clk 0:02:55]} 13... e5 {[%clk 0:02:35.3]} 14.
dxe6 {[%clk 0:02:49.5]} 14... Nxe6 {[%clk 0:02:33.5]} 15. Bxg7 {[%clk
0:02:48.5]} 15... Kxg7 {[%clk 0:02:33.3]} 16. Qd2 {[%clk 0:02:48]} 16... Ne5
{[%clk 0:02:29.3]} 17. Re3 {[%clk 0:02:43]} 17... Nxc4 {[%clk 0:02:24.5]} 18.
Qe1 {[%clk 0:02:43.3]} 18... Nxe3 {[%clk 0:02:24.3]} 19. Qxe3 {[%clk 0:02:44.2]}
19... Qf6 {[%clk 0:02:19.8]} 20. Rd1 {[%clk 0:02:43.4]} 20... Rae8 {[%clk
0:02:17.3]} 21. Re1 {[%clk 0:02:24.6]} 21... Ng5 {[%clk 0:02:11.6]} 22. Nd2
{[%clk 0:02:18]} 22... Ne6 {[%clk 0:02:01.2]} 23. g3 {[%clk 0:02:15]} 23... Qd4
{[%clk 0:02:00.4]} 24. Qe2 {[%clk 0:02:13.4]} 24... Nc5 {[%clk 0:01:58.4]} 25.
Nf3 {[%clk 0:01:51.4]} 25... Qf6 {[%clk 0:01:56]} 26. Qd1 {[%clk 0:01:49.6]}
26... Re7 {[%clk 0:01:52.4]} 27. Nd2 {[%clk 0:01:47.6]} 27... Rfe8 {[%clk
0:01:50.9]} 28. Rf1 {[%clk 0:01:45.8]} 28... Qd4 {[%clk 0:01:49.3]} 29. a3
{[%clk 0:01:36]} 29... Ba6 {[%clk 0:01:42.7]} 30. Re1 {[%clk 0:01:34.3]} 30...
h5 {[%clk 0:01:32.8]} 31. Re3 {[%clk 0:01:33.3]} 31... b5 {[%clk 0:01:15.9]} 32.
Nd5 {[%clk 0:01:32.2]} 32... Rd7 {[%clk 0:01:11.2]} 33. Qc1 {[%clk 0:01:32.3]}
33... Bb7 {[%clk 0:01:01.2]} 34. Nf3 {[%clk 0:01:31.3]} 34... Qc4 {[%clk
0:00:46.6]} 35. b3 {[%clk 0:01:31.6]} 35... Nxb3 {[%clk 0:00:46.7]} 36. Qb2+
{[%clk 0:01:31.5]} 36... Nd4 {[%clk 0:00:35.2]} 37. Nxd4 {[%clk 0:01:31.1]}
37... Bxd5 {[%clk 0:00:32.6]} 38. Nf5+ {[%clk 0:01:27.8]} 1-0

[Event "*** Titled Tuesday Blitz"]
[Site "Chess.com"]
[Date "2020.04.28"]
[Round "1"]
[White "leschebaza"]
[Black "Shuvalov"]
[Result "1/2-1/2"]
[WhiteElo "1786"]
[BlackElo "2465"]
[TimeControl "180+1"]
[EndTime "10:05:43 PDT"]
[Termination "Game drawn by repetition"]

1. e4 {[%clk 0:02:55.3]} 1... e6 {[%clk 0:02:59]} 2. d4 {[%clk 0:02:55.2]} 2...
d5 {[%clk 0:02:58.8]} 3. Nd2 {[%clk 0:02:55.2]} 3... Nf6 {[%clk 0:02:58.2]} 4.
e5 {[%clk 0:02:55.4]} 4... Nfd7 {[%clk 0:02:58.5]} 5. Bd3 {[%clk 0:02:56.3]}
5... c5 {[%clk 0:02:58.7]} 6. c3 {[%clk 0:02:56.5]} 6... Nc6 {[%clk 0:02:59]} 7.
Ndf3 {[%clk 0:02:55.8]} 7... Qa5 {[%clk 0:02:56.9]} 8. Bd2 {[%clk 0:02:50.2]}
8... Qb6 {[%clk 0:02:55.9]} 9. Ne2 {[%clk 0:02:26.2]} 9... c4 {[%clk 0:02:55]}
10. Bc2 {[%clk 0:02:23.1]} 10... Qxb2 {[%clk 0:02:55]} 11. O-O {[%clk
0:02:21.9]} 11... h6 {[%clk 0:02:47.5]} 12. h3 {[%clk 0:02:10.8]} 12... Qa3
{[%clk 0:02:43]} 13. Nh2 {[%clk 0:02:09.8]} 13... Nb6 {[%clk 0:02:34]} 14. f4
{[%clk 0:02:09]} 14... Bd7 {[%clk 0:02:25.3]} 15. f5 {[%clk 0:02:07.7]} 15...
O-O-O {[%clk 0:02:25.2]} 16. fxe6 {[%clk 0:02:03.8]} 16... Bxe6 {[%clk 0:02:25]}
17. Nf4 {[%clk 0:02:00.6]} 17... Rd7 {[%clk 0:01:55.9]} 18. Nf3 {[%clk
0:01:29.9]} 18... Qe7 {[%clk 0:01:44.1]} 19. Nxe6 {[%clk 0:01:26.5]} 19... fxe6
{[%clk 0:01:43]} 20. Qe1 {[%clk 0:01:22.4]} 20... g5 {[%clk 0:01:38]} 21. Nh2
{[%clk 0:01:22.4]} 21... Bg7 {[%clk 0:01:37.1]} 22. Ng4 {[%clk 0:01:17]} 22...
Rf8 {[%clk 0:01:36.5]} 23. Rxf8+ {[%clk 0:01:11.3]} 23... Qxf8 {[%clk
0:01:36.6]} 24. Qg3 {[%clk 0:01:01.7]} 24... Qa3 {[%clk 0:01:10.2]} 25. Bc1
{[%clk 0:00:49.8]} 25... Qf8 {[%clk 0:00:55.3]} 26. Bd2 {[%clk 0:00:47.5]} 26...
Qa3 {[%clk 0:00:54.7]} 27. Bc1 {[%clk 0:00:47.6]} 27... Qf8 {[%clk 0:00:45.7]}
28. Bd2 {[%clk 0:00:47.1]} 1/2-1/2

[Event "*** Titled Tuesday Blitz"]
[Site "Chess.com"]
[Date "2020.04.28"]
[Round "1"]
[White "korkmaz16"]
[Black "verdest"]
[Result "0-1"]
[WhiteElo "2257"]
[BlackElo "2588"]
[TimeControl "180+1"]
[EndTime "10:05:44 PDT"]
[Termination "verdest won by resignation"]

1. e4 {[%clk 0:02:59.9]} 1... c5 {[%clk 0:02:59.6]} 2. Nf3 {[%clk 0:02:58.1]}
2... Nc6 {[%clk 0:02:59.4]} 3. d4 {[%clk 0:02:55.8]} 3... cxd4 {[%clk
0:03:00.3]} 4. Nxd4 {[%clk 0:02:54.9]} 4... Nf6 {[%clk 0:03:00.9]} 5. Nc3 {[%clk
0:02:53.8]} 5... e5 {[%clk 0:02:59.2]} 6. Ndb5 {[%clk 0:02:52.7]} 6... d6 {[%clk
0:02:59.4]} 7. Bg5 {[%clk 0:02:40.8]} 7... a6 {[%clk 0:02:58.5]} 8. Na3 {[%clk
0:02:39.1]} 8... b5 {[%clk 0:02:57.4]} 9. Bxf6 {[%clk 0:02:35.8]} 9... gxf6
{[%clk 0:02:58.3]} 10. Nd5 {[%clk 0:02:35.9]} 10... Bg7 {[%clk 0:02:57.9]} 11.
Bd3 {[%clk 0:02:35.3]} 11... Ne7 {[%clk 0:02:56.6]} 12. Nxe7 {[%clk 0:02:02.6]}
12... Qxe7 {[%clk 0:02:57.5]} 13. c4 {[%clk 0:01:50.5]} 13... O-O {[%clk
0:02:55]} 14. O-O {[%clk 0:01:43.7]} 14... f5 {[%clk 0:02:50.1]} 15. Re1 {[%clk
0:01:31]} 15... d5 {[%clk 0:02:16]} 16. cxd5 {[%clk 0:01:17.7]} 16... fxe4
{[%clk 0:02:14.6]} 17. Bxe4 {[%clk 0:01:14]} 17... Qd6 {[%clk 0:02:14.2]} 18.
Rc1 {[%clk 0:01:07.8]} 18... Bd7 {[%clk 0:02:10.4]} 19. Rc6 {[%clk 0:00:54.5]}
19... Bxc6 {[%clk 0:02:08.7]} 20. dxc6 {[%clk 0:00:52.5]} 20... Qxd1 {[%clk
0:02:06.8]} 21. Rxd1 {[%clk 0:00:52.1]} 21... Rfd8 {[%clk 0:02:01.1]} 22. Rc1
{[%clk 0:00:17.7]} 22... Rac8 {[%clk 0:01:59.7]} 23. Nc2 {[%clk 0:00:16.2]}
23... f5 {[%clk 0:01:55.2]} 24. Bxf5 {[%clk 0:00:15.7]} 24... Rxc6 {[%clk
0:01:55.1]} 25. Re1 {[%clk 0:00:13.9]} 25... Rd2 {[%clk 0:01:47.9]} 26. Nb4
{[%clk 0:00:13.7]} 26... Rf6 {[%clk 0:01:44.7]} 27. Be4 {[%clk 0:00:13]} 27...
Rfxf2 {[%clk 0:01:44.6]} 28. b3 {[%clk 0:00:11.5]} 28... Bf8 {[%clk 0:01:43]}
29. Nd5 {[%clk 0:00:10.7]} 29... Bc5 {[%clk 0:01:40]} 30. Kh1 {[%clk 0:00:10.7]}
30... Rde2 {[%clk 0:01:34.4]} 31. Nf6+ {[%clk 0:00:07.4]} 31... Rxf6 {[%clk
0:01:32.6]} 0-1

[Event "*** Titled Tuesday Blitz"]
[Site "Chess.com"]
[Date "2020.04.28"]
[Round "1"]
[White "GameOverBro"]
[Black "kinga2008"]
[Result "1-0"]
[WhiteElo "2508"]
[BlackElo "2112"]
[TimeControl "180+1"]
[EndTime "10:05:44 PDT"]
[Termination "GameOverBro won by resignation"]

1. e4 {[%clk 0:02:59.2]} 1... g6 {[%clk 0:02:58.8]} 2. d4 {[%clk 0:02:59]} 2...
Bg7 {[%clk 0:02:58.8]} 3. Nc3 {[%clk 0:02:59.4]} 3... d6 {[%clk 0:02:58.7]} 4.
g3 {[%clk 0:02:59.3]} 4... c5 {[%clk 0:02:58.3]} 5. Nge2 {[%clk 0:02:58.5]} 5...
cxd4 {[%clk 0:02:48.1]} 6. Nxd4 {[%clk 0:02:59.4]} 6... Nc6 {[%clk 0:02:47.6]}
7. Nde2 {[%clk 0:02:58.4]} 7... Nf6 {[%clk 0:02:41.3]} 8. Bg2 {[%clk 0:02:58.2]}
8... O-O {[%clk 0:02:38.9]} 9. O-O {[%clk 0:02:58.3]} 9... Bd7 {[%clk
0:02:39.8]} 10. a4 {[%clk 0:02:55.1]} 10... Qc8 {[%clk 0:02:27.2]} 11. Re1
{[%clk 0:02:49]} 11... Ne5 {[%clk 0:02:24.1]} 12. Nd5 {[%clk 0:02:41.1]} 12...
Nxd5 {[%clk 0:02:21.9]} 13. exd5 {[%clk 0:02:42]} 13... Bg4 {[%clk 0:02:18.8]}
14. Ra3 {[%clk 0:02:31.5]} 14... Nc4 {[%clk 0:02:11.3]} 15. Rb3 {[%clk
0:02:27.6]} 15... Na5 {[%clk 0:01:59.8]} 16. Rb4 {[%clk 0:02:24]} 16... Bf5
{[%clk 0:01:54.1]} 17. Nd4 {[%clk 0:02:15.2]} 17... Bxd4 {[%clk 0:01:44.1]} 18.
Qxd4 {[%clk 0:02:14.8]} 18... Qxc2 {[%clk 0:01:39]} 19. Bh6 {[%clk 0:02:13.6]}
19... f6 {[%clk 0:01:31.9]} 20. g4 {[%clk 0:01:48.4]} 20... Bd3 {[%clk
0:01:16.9]} 21. Rc1 {[%clk 0:01:30.7]} 21... Qe2 {[%clk 0:01:13.4]} 22. Bf1
{[%clk 0:01:30.5]} 22... Qf3 {[%clk 0:00:49.2]} 23. Qxd3 {[%clk 0:01:24.7]}
23... Qxd3 {[%clk 0:00:46.1]} 24. Bxd3 {[%clk 0:01:25.6]} 24... g5 {[%clk
0:00:45.8]} 25. Bxf8 {[%clk 0:01:23.5]} 25... Kxf8 {[%clk 0:00:41.2]} 26. Rc7
{[%clk 0:01:23.4]} 26... Kf7 {[%clk 0:00:39.8]} 27. Bxh7 {[%clk 0:01:22.3]}
27... Rh8 {[%clk 0:00:37.2]} 28. Bf5 {[%clk 0:01:22]} 28... Rh3 {[%clk
0:00:38.1]} 29. Rc3 {[%clk 0:01:20.3]} 29... Rh4 {[%clk 0:00:31.7]} 30. Re4
{[%clk 0:01:17.7]} 30... b6 {[%clk 0:00:29.3]} 31. Rc7 {[%clk 0:01:17.3]} 1-0

[Event "*** Titled Tuesday Blitz"]
[Site "Chess.com"]
[Date "2020.04.28"]
[Round "1"]
[White "Manukyan_Artak"]
[Black "crescentmoon2411"]
[Result "0-1"]
[WhiteElo "2412"]
[BlackElo "2771"]
[TimeControl "180+1"]
[EndTime "10:05:47 PDT"]
[Termination "crescentmoon2411 won by resignation"]

1. e4 {[%clk 0:03:00.9]} 1... c5 {[%clk 0:02:57.9]} 2. Nf3 {[%clk 0:03:00.5]}
2... d6 {[%clk 0:02:57.5]} 3. Bb5+ {[%clk 0:02:59.8]} 3... Nc6 {[%clk
0:02:56.7]} 4. O-O {[%clk 0:02:59]} 4... Bd7 {[%clk 0:02:52.7]} 5. c3 {[%clk
0:02:56.9]} 5... Nf6 {[%clk 0:02:51]} 6. Re1 {[%clk 0:02:56.1]} 6... a6 {[%clk
0:02:45.5]} 7. Bxc6 {[%clk 0:02:54.8]} 7... Bxc6 {[%clk 0:02:45.1]} 8. e5 {[%clk
0:02:55.3]} 8... dxe5 {[%clk 0:02:33.7]} 9. Nxe5 {[%clk 0:02:56.2]} 9... Rc8
{[%clk 0:02:33.3]} 10. d4 {[%clk 0:02:53.6]} 10... e6 {[%clk 0:02:23.6]} 11. Bg5
{[%clk 0:02:43.8]} 11... Be7 {[%clk 0:02:20.1]} 12. dxc5 {[%clk 0:02:24.7]}
12... Qxd1 {[%clk 0:02:17]} 13. Rxd1 {[%clk 0:02:25.6]} 13... Bxc5 {[%clk
0:02:11.9]} 14. Bxf6 {[%clk 0:02:22.5]} 14... gxf6 {[%clk 0:02:11.7]} 15. Nxc6
{[%clk 0:02:23.1]} 15... Rxc6 {[%clk 0:02:11.8]} 16. Nd2 {[%clk 0:02:23.3]}
16... Ke7 {[%clk 0:02:11.5]} 17. Ne4 {[%clk 0:02:22.6]} 17... Bb6 {[%clk
0:02:08.6]} 18. Kf1 {[%clk 0:02:19.4]} 18... f5 {[%clk 0:02:03]} 19. Nd2 {[%clk
0:02:14.1]} 19... Rd8 {[%clk 0:01:58.9]} 20. Nb3 {[%clk 0:02:11.2]} 20... Rcd6
{[%clk 0:01:56.7]} 21. Rxd6 {[%clk 0:02:07.9]} 21... Rxd6 {[%clk 0:01:49.2]} 22.
f3 {[%clk 0:02:08]} 22... a5 {[%clk 0:01:47.2]} 23. a4 {[%clk 0:02:04.3]} 23...
Bc7 {[%clk 0:01:44.3]} 24. Nd4 {[%clk 0:01:58.4]} 24... Rb6 {[%clk 0:01:44.1]}
25. Nb5 {[%clk 0:01:56.8]} 25... Bxh2 {[%clk 0:01:44]} 26. Ke2 {[%clk
0:01:57.3]} 26... Bf4 {[%clk 0:01:40.8]} 27. Rh1 {[%clk 0:01:49.2]} 27... h6
{[%clk 0:01:40.5]} 28. Rh4 {[%clk 0:01:49.2]} 28... e5 {[%clk 0:01:35.4]} 29.
Rh5 {[%clk 0:01:40.5]} 29... Rg6 {[%clk 0:01:33.7]} 30. Kf1 {[%clk 0:01:34.4]}
30... Bg5 {[%clk 0:01:31.1]} 31. Ke2 {[%clk 0:01:22.1]} 31... Rg8 {[%clk
0:01:27.2]} 32. Rh1 {[%clk 0:01:18.4]} 32... Bf4 {[%clk 0:01:25.6]} 33. Kf2
{[%clk 0:01:16.8]} 33... Rd8 {[%clk 0:01:24.2]} 34. Re1 {[%clk 0:01:12.2]} 34...
Rd2+ {[%clk 0:01:23.2]} 35. Re2 {[%clk 0:01:10.7]} 35... Bg3+ {[%clk 0:01:21.8]}
36. Ke3 {[%clk 0:01:08.7]} 36... Rd1 {[%clk 0:01:20.8]} 37. Na3 {[%clk
0:01:00.7]} 37... f4+ {[%clk 0:01:19.4]} 38. Ke4 {[%clk 0:00:52.6]} 38... Ke6
{[%clk 0:01:20.3]} 0-1